bitfinex/quotes_ETHUSD_20250730
["timestamp","ask_amount","ask_price","bid_price","bid_amount"]
[1753876533098,9.77165153,3751.2,3750.3,3.13034258]
[1753876533283,9.77165153,3751.2,3750.6,2.66623883]
[1753876533451,9.77165153,3751.2,3750.2,2.80012128]
[1753876533655,11.29881668,3751.2,3750.1,0.04]
[1753876534159,11.29881668,3751.2,3750.3,2.66639261]
[1753876534759,11.05264308,3751.2,3750.2,2.66650667]
[1753876534999,11.05264308,3751.2,3750.1,0.04]
[1753876535194,13.71845668,3751.2,3750.1,0.04]
[1753876535498,11.05264308,3751.2,3750.1,0.04]
[1753876535991,11.05264308,3751.2,3750.3,2.66639765]
[1753876536699,11.05264308,3751.2,3750.1,0.2948]
[1753876536905,11.05264308,3751.2,3750.1,3.4252871]
[1753876537058,4.25757793,3751.2,3750.1,0.7587]
[1753876537402,0.1,3750.5,3750.1,0.04]
[1753876537697,0.1,3750.2,3750.1,2.70659555]
[1753876537881,0.1,3750.2,3750.1,4.25330581]
[1753876538191,4.341,3750.7,3750.5,2.66631115]
[1753876538192,0.1,3750.6,3750.5,2.66631115]
[1753876538360,3.0,3751.0,3750.7,2.66616898]
[1753876538556,0.1336,3750.8,3750.7,2.66616898]
[1753876538791,0.47977329,3750.8,3750.7,2.66616898]
[1753876539253,0.37977329,3750.8,3750.7,2.66616898]
[1753876539457,0.1336,3750.8,3750.7,9.71868324]
[1753876539694,0.33027793,3751.2,3751.1,2.66588467]
[1753876539869,0.37984507,3751.2,3751.1,2.66588467]
[1753876540069,0.24624507,3751.2,3751.1,3.42458467]
[1753876540267,0.24624507,3751.2,3751.1,4.16724001]
[1753876541397,0.24624507,3751.2,3751.1,4.99997516]
[1753876541976,1e-08,3751.2,3751.1,9.33697516]
[1753876542298,1e-08,3751.2,3751.1,9.31684001]
[1753876542476,1e-08,3751.2,3751.1,12.31684001]
[1753876542675,1e-08,3751.2,3751.1,12.31784001]
[1753876542871,0.1336,3752.3,3752.2,2.66510313]
[1753876543196,0.2336,3752.3,3752.2,2.66510313]
[1753876543393,0.1336,3752.3,3752.2,2.66510313]
[1753876543599,0.2336,3752.3,3752.2,2.66510313]
[1753876543891,0.1336,3752.3,3752.2,2.66510313]
[1753876544094,0.2336,3752.3,3752.2,2.66510313]
[1753876544300,0.1,3752.4,3752.3,2.66501888]
[1753876544472,0.1,3752.4,3752.1,0.7579]
[1753876544473,0.1,3752.4,3752.2,2.66508449]
[1753876544871,0.1,3752.2,3752.1,2.66517416]
[1753876547112,0.1336,3752.3,3752.2,2.66510313]
[1753876547400,0.2336,3752.3,3752.2,2.66510313]
[1753876547575,0.1336,3752.3,3752.2,2.66510313]
[1753876547923,0.1336,3752.3,3751.8,3.26285079]
[1753876547924,0.1,3752.1,3752.0,2.6652452]
[1753876548416,0.1,3752.4,3752.3,2.66503211]
[1753876548564,0.2336,3752.6,3752.5,2.66489007]
[1753876548764,0.1,3752.6,3752.5,2.66489007]
[1753876549409,0.1336,3752.7,3752.6,2.66481905]
[1753876550004,0.2336,3752.7,3752.5,2.66486609]
[1753876550170,0.2336,3752.7,3752.4,4.326]
[1753876550517,0.1,3752.5,3752.4,4.326]
[1753876550720,0.578,3752.5,3752.2,0.1336]
[1753876551017,1.0169,3752.5,3752.4,2.66496109]
[1753876551512,1.1505,3752.5,3752.3,2.66501602]
[1753876551808,1.1505,3752.5,3752.1,6.98616125]
[1753876551809,0.2336,3752.5,3752.4,2.66496109]
[1753876552123,0.7116,3752.5,3752.4,2.66496109]
[1753876552310,0.1,3752.4,3752.1,4.321]
[1753876552601,0.1,3752.2,3751.8,0.1336]
[1753876552803,0.1,3751.9,3751.8,2.66538373]
[1753876553979,0.6116,3752.1,3751.7,4.321]
[1753876553980,0.7116,3752.1,3751.7,4.321]
[1753876554179,0.1,3751.8,3751.7,6.98645832]
[1753876554920,0.1,3751.9,3751.8,2.66537825]
[1753876555217,0.1,3751.9,3751.5,0.1336]
[1753876555521,0.1,3751.7,3751.6,4.312]
[1753876555726,0.1,3751.3,3751.2,2.79937076]
[1753876555881,0.1,3751.3,3751.2,7.11137076]
[1753876556219,0.578,3751.3,3751.1,0.002]
[1753876556424,0.478,3751.2,3751.1,0.002]
[1753876557618,0.478,3751.2,3751.1,2.66788467]
[1753876558126,0.6725,3751.3,3751.2,2.6658136]
[1753876558127,0.2336,3751.3,3751.2,2.6658136]
[1753876558479,0.2336,3751.3,3751.1,2.66782434]
[1753876558700,0.2336,3751.3,3751.2,2.6658136]
[1753876559306,0.2336,3751.3,3751.1,0.002]
[1753876559508,0.2336,3751.3,3751.2,2.6658136]
[1753876559826,0.1336,3751.3,3751.1,2.66787551]
[1753876559983,0.1,3751.2,3751.1,0.002]
[1753876560181,0.1,3751.2,3751.1,2.66788467]
[1753876560182,0.578,3751.2,3751.1,2.66788467]
[1753876560382,0.1,3751.2,3751.1,2.66788467]
[1753876560592,0.1,3751.2,3750.8,4.4356]
[1753876560792,0.1,3750.9,3750.7,0.9017]
[1753876561024,0.55,3751.8,3751.7,2.66545832]
[1753876561323,0.1,3752.5,3752.3,2.66503211]
[1753876561481,0.4341,3753.0,3751.7,0.9433]
[1753876561482,1.01838961,3752.7,3752.4,0.4705]
[1753876561680,0.24918961,3752.6,3752.0,6.96621843]
[1753876561883,0.1,3752.2,3752.1,2.66517416]
[1753876562147,0.1,3752.2,3751.7,0.1336]
[1753876562448,5.76538728,3751.8,3751.7,0.1336]
[1753876562653,0.1,3751.0,3750.8,4.319]
[1753876562927,0.4341,3750.9,3750.8,4.319]
[1753876563407,0.1,3751.0,3750.9,2.66602682]
[1753876563613,0.1,3751.0,3750.9,3.13652682]
[1753876563922,0.1,3751.0,3750.9,0.4705]
[1753876564145,0.1,3750.7,3750.6,3.13674006]
[1753876564283,0.1,3750.7,3750.6,2.66624006]
[1753876564484,0.1,3750.4,3750.3,2.66645335]
[1753876564710,0.1,3750.4,3750.3,0.4705]
[1753876565127,0.4341,3750.7,3750.3,0.4705]
[1753876565128,0.1,3750.7,3750.6,2.66624006]
[1753876565326,0.1,3750.7,3750.6,10.92319881]
[1753876565513,1.3217,3751.8,3751.2,2.66574867]
[1753876565718,0.1,3751.3,3751.2,2.6658136]
[1753876566025,0.1,3751.3,3751.2,3.1363136]
[1753876566320,0.1,3751.3,3751.2,3.136289]
[1753876566524,0.8144,3752.2,3751.2,1.2168289]
[1753876566689,0.1,3751.2,3751.1,4.88859881]
[1753876566889,0.1,3751.2,3751.1,5.36139881]
[1753876567120,0.1,3751.6,3751.1,7.55448348]
[1753876567330,0.8144,3752.2,3751.8,2.66533]
[1753876567624,0.1,3751.6,3751.5,6.99057209]
[1753876567798,0.1,3751.6,3751.2,2.66576316]
[1753876568002,0.1,3751.4,3751.3,4.324]
[1753876568329,0.1,3751.4,3751.3,6.98974254]
[1753876568560,0.1,3751.4,3751.3,7.46024254]
[1753876569562,0.1,3751.4,3751.0,0.4705]
[1753876569719,0.1,3751.1,3751.0,0.4705]
[1753876569919,0.1,3751.1,3751.0,4.324]
[1753876570174,0.1,3751.1,3750.4,4.88859881]
[1753876570175,0.1,3750.8,3750.3,0.002]
[1753876570665,3.1,3750.4,3750.3,0.002]
[1753876570822,4.79235363,3750.4,3750.3,0.002]
[1753876571022,7.89283588,3750.4,3750.3,0.002]
[1753876571332,8.44283588,3750.4,3750.3,0.002]
[1753876571550,5.67645363,3750.4,3750.3,0.002]
[1753876571720,1.3282,3750.4,3750.3,0.002]
[1753876571921,0.8941,3750.4,3750.3,0.002]
[1753876572262,0.1,3750.4,3750.3,3.13895335]
[1753876572756,0.2336,3750.4,3750.3,3.13895335]
[1753876573055,0.1,3750.4,3750.3,3.13895335]
[1753876573460,0.1,3750.4,3750.3,0.4725]
[1753876573665,0.1,3750.4,3750.3,3.13895335]
[1753876574024,0.1,3750.4,3750.3,0.4725]
[1753876574238,0.1,3750.4,3750.3,0.002]
[1753876574444,0.5341,3750.4,3750.3,0.002]
[1753876574701,1.3424,3750.4,3750.3,0.002]
[1753876575119,0.1,3750.4,3750.3,0.4725]
[1753876576132,0.1,3750.4,3750.3,4.45753568]
[1753876576334,0.1,3750.7,3750.6,2.66622514]
[1753876576645,0.1,3750.4,3750.3,0.002]
[1753876576847,0.1,3750.4,3750.3,2.66845335]
[1753876577050,0.2336,3750.5,3750.4,2.66638225]
[1753876577462,0.2336,3750.5,3750.4,7.46088225]
[1753876577663,0.1,3750.8,3750.7,2.66616898]
[1753876577871,0.1,3750.8,3750.7,7.45866898]
[1753876578184,0.1,3750.8,3750.7,7.93146898]
[1753876578464,0.1,3751.2,3751.1,2.66588467]
[1753876578772,0.1,3751.2,3751.1,4.7935]
[1753876579061,0.1,3751.2,3751.1,7.45938467]
[1753876579272,0.1,3751.2,3751.1,4.7935]
[1753876579632,0.1,3751.2,3751.1,4.323]
[1753876579858,0.2336,3751.2,3751.1,7.45938467]
[1753876580091,0.1,3751.0,3750.9,2.66601758]
[1753876580308,0.1,3751.0,3750.9,7.45651758]
[1753876580794,0.1,3751.2,3751.1,2.66588467]
[1753876581144,0.1,3751.2,3751.1,3.13638467]
[1753876581698,0.1,3751.0,3750.9,6.98602083]
[1753876581990,0.1,3751.2,3751.1,2.66588467]
[1753876582153,0.1336,3751.7,3751.4,2.66560252]
[1753876582357,0.1,3751.6,3751.5,6.98458004]
[1753876582695,0.1,3751.6,3751.5,6.98460042]
[1753876582899,0.1,3751.6,3751.5,7.45510042]
[1753876583053,0.1,3751.6,3751.5,4.319]
[1753876583252,0.5341,3751.6,3751.5,4.319]
[1753876583863,0.1,3751.6,3751.5,4.7895]
[1753876586102,0.05,3751.3,3751.0,2.66592432]
[1753876586396,0.1836,3751.1,3751.0,2.66595574]
[1753876586696,0.1836,3751.1,3751.0,6.97695574]
[1753876586892,0.05,3751.1,3751.0,6.97695574]
[1753876587094,0.05,3751.1,3751.0,7.44745574]
[1753876588860,0.1336,3751.3,3751.0,7.44745574]
[1753876589117,0.05,3751.1,3751.0,6.97695574]
[1753876589317,0.05,3751.1,3751.0,4.311]
[1753876589660,0.05,3751.1,3751.0,7.44745574]
[1753876590074,0.05,3751.1,3751.0,4.7815]
[1753876591419,0.05,3751.1,3751.0,0.4705]
[1753876591583,0.05,3750.7,3750.5,3.15976171]
[1753876591782,0.05,3750.7,3750.6,7.46074006]
[1753876592006,0.1836,3750.9,3750.6,4.7945]
[1753876592219,0.05,3750.7,3750.6,4.301]
[1753876592418,0.05,3750.7,3750.6,12.64936423]
[1753876592621,0.05,3750.7,3750.6,12.78296423]
[1753876592790,0.05,3750.7,3750.6,7.59434006]
[1753876592992,0.05,3750.7,3750.3,3.16193865]
[1753876593192,0.05,3750.5,3750.4,4.7925]
[1753876593716,0.05,3750.5,3750.3,0.1356]
[1753876593911,1.3019,3750.5,3750.4,4.299]
[1753876594084,0.6279,3750.5,3750.4,4.299]
[1753876595008,0.1836,3750.5,3750.4,7.45888225]
[1753876595324,0.1836,3750.7,3750.6,2.66624006]
[1753876595496,0.001,3751.1,3751.0,2.66595574]
[1753876595697,0.1346,3751.1,3751.0,4.301]
[1753876595883,0.1846,3751.1,3751.0,4.7945]
[1753876596083,0.1346,3751.1,3751.0,7.46045574]
[1753876596299,0.1346,3751.1,3751.0,4.7945]
[1753876596488,0.1846,3751.1,3751.0,7.46045574]
[1753876596707,0.1846,3751.1,3751.0,4.7945]
[1753876597019,0.1346,3751.1,3751.0,4.7945]
[1753876597227,0.1846,3751.1,3751.0,4.7945]
[1753876597395,0.1846,3751.1,3751.0,4.301]
[1753876597597,0.6289,3751.1,3751.0,4.301]
[1753876598190,0.1846,3751.1,3751.0,4.301]
[1753876598422,0.1846,3751.1,3751.0,7.46045574]
[1753876598587,0.1846,3751.1,3751.0,4.7945]
[1753876599515,0.1846,3751.1,3751.0,4.301]
[1753876599823,0.001,3751.1,3751.0,7.46045574]
[1753876600328,0.001,3751.1,3751.0,7.59405574]
[1753876600928,0.051,3751.1,3751.0,7.59405574]
[1753876601113,0.001,3751.1,3751.0,7.59405574]
[1753876601313,0.051,3751.1,3751.0,7.59405574]
[1753876601886,0.051,3751.1,3751.0,3.29305574]
[1753876602086,0.051,3751.1,3751.0,7.58105574]
[1753876603327,0.051,3751.1,3751.0,4.7815]
[1753876603542,0.001,3751.1,3751.0,6.95395574]
[1753876603690,0.001,3751.1,3751.0,4.288]
[1753876604024,0.051,3751.1,3751.0,7.44745574]
[1753876604236,0.05,3750.9,3750.6,1.29]
[1753876604388,0.05,3750.7,3750.6,3.59634006]
[1753876604589,0.1846,3751.1,3751.0,2.66595574]
[1753876604789,0.1346,3751.1,3751.0,6.94895574]
[1753876605051,0.051,3751.1,3751.0,7.44245574]
[1753876605193,0.051,3751.1,3751.0,4.7765]
[1753876605391,0.051,3751.1,3751.0,7.44245574]
[1753876606760,0.051,3751.1,3751.0,7.08255574]
[1753876606926,0.051,3751.1,3751.0,6.94895574]
[1753876607136,0.051,3751.1,3751.0,7.44245574]
[1753876607443,0.051,3751.1,3751.0,7.43945574]
[1753876608541,0.051,3751.1,3751.0,4.7735]
[1753876608745,0.051,3751.1,3751.0,7.43945574]
[1753876611561,0.001,3751.1,3751.0,14.16496767]
[1753876611864,0.051,3751.1,3751.0,14.75676767]
[1753876612159,0.001,3751.1,3751.0,14.75676767]
[1753876614541,0.001,3751.1,3751.0,14.75876767]
[1753876616163,0.001,3751.1,3751.0,17.75876767]
[1753876616681,0.001,3751.6,3751.5,3.43890042]
[1753876616853,0.001,3751.6,3751.5,12.95138927]
[1753876617056,0.001,3751.6,3751.5,14.03668927]
[1753876617543,0.001,3752.0,3751.9,2.66531623]
[1753876617869,0.001,3752.0,3751.9,7.87971623]
[1753876618027,0.001,3752.0,3751.9,9.02939774]
[1753876618227,0.001,3752.0,3751.9,9.98109774]
[1753876618650,0.001,3752.0,3751.9,12.98109774]
[1753876618841,0.001,3752.2,3752.1,2.66517416]
[1753876619050,0.001,3752.2,3752.1,11.83377297]
[1753876619349,0.001,3752.2,3752.1,5.34576123]
[1753876619561,0.001,3752.2,3752.1,7.57227416]
[1753876620137,0.001,3752.2,3752.1,8.03047416]
[1753876620476,0.001,3752.2,3752.1,8.03007416]
[1753876621050,1e-08,3752.2,3752.1,8.03007416]
[1753876621771,1e-08,3752.2,3752.1,12.91867297]
[1753876621972,1e-08,3752.2,3752.1,14.67211033]
[1753876622180,1e-08,3752.6,3752.1,18.04461033]
[1753876622333,1e-08,3752.6,3752.5,6.49519007]
[1753876622527,0.04,3752.9,3752.8,2.66467704]
[1753876622732,0.5231,3754.4,3753.8,2.66396717]
[1753876622933,0.4731,3754.4,3753.8,12.62026598]
[1753876623134,0.05,3754.7,3754.5,2.6634705]
[1753876623375,0.8151,3754.8,3753.8,13.10446598]
[1753876623376,0.4741,3755.1,3754.8,2.66325769]
[1753876623573,0.09,3754.9,3754.8,6.94125769]
[1753876623759,0.04,3754.9,3754.8,6.94125769]
[1753876623960,0.09,3754.9,3754.8,6.94125769]
[1753876624149,0.09,3754.9,3754.8,7.42545769]
[1753876624837,0.09,3754.9,3754.6,0.7714]
[1753876625050,0.4731,3754.8,3754.7,6.94132862]
[1753876625993,0.4731,3754.8,3754.7,4.278]
[1753876626462,0.4731,3754.8,3754.7,6.94132862]
[1753876626672,0.09,3754.9,3754.8,2.66325769]
[1753876627058,0.5631,3754.9,3754.6,2.66334669]
[1753876627258,0.09,3754.9,3754.8,2.66325769]
[1753876627755,0.09,3754.9,3754.8,6.94025769]
[1753876627964,0.5631,3754.9,3754.8,4.277]
[1753876628187,0.5631,3754.9,3754.8,6.94025769]
[1753876628767,0.5631,3754.9,3754.8,4.277]
[1753876628963,0.5631,3754.9,3754.3,0.4842]
[1753876629294,0.09,3754.9,3754.8,2.66325769]
[1753876629498,0.09,3754.9,3754.8,7.95711801]
[1753876629655,0.04,3754.9,3754.8,7.95711801]
[1753876629856,0.04,3754.9,3754.8,12.84571682]
[1753876630193,0.04,3754.9,3754.8,13.59991682]
[1753876630495,0.04,3754.9,3754.8,4.276]
[1753876630660,0.5631,3754.9,3754.8,4.276]
[1753876631062,0.5631,3754.9,3754.8,6.93925769]
[1753876632166,0.09,3754.9,3754.8,7.42345769]
[1753876632381,0.04,3754.9,3754.8,7.55625769]
[1753876632595,0.5131,3754.9,3754.8,7.07205769]
[1753876632801,0.5131,3754.9,3754.8,2.79605769]
[1753876632999,0.5131,3754.9,3754.8,7.07205769]
[1753876633487,0.04,3754.9,3754.8,7.55625769]
[1753876634307,0.04,3754.9,3754.8,14.25382205]
[1753876634660,0.04,3754.9,3754.8,14.71162205]
[1753876634862,0.04,3754.9,3754.8,9.36522324]
[1753876635165,0.5131,3754.9,3754.8,7.07105769]
[1753876636219,0.5131,3754.9,3754.8,4.4078]
[1753876636406,0.5131,3754.9,3754.8,7.07105769]
[1753876636565,0.05,3754.8,3754.7,2.66328506]
[1753876636770,0.05,3754.8,3754.7,6.93828506]
[1753876636968,0.05,3754.8,3754.7,4.275]
[1753876637174,1.3508,3754.8,3754.7,4.275]
[1753876637394,1.62278,3754.8,3754.7,4.275]
[1753876637616,1.4836,3754.8,3754.7,4.275]
[1753876637825,1.4836,3754.8,3754.7,7.42252862]
[1753876637826,0.05,3754.8,3754.7,7.42252862]
[1753876638012,0.04,3754.9,3754.8,2.66325769]
[1753876638214,0.09,3754.9,3754.8,3.14745769]
[1753876638416,0.09,3754.9,3754.8,4.24886632]
[1753876638728,0.04,3754.9,3754.8,4.24886632]
[1753876639523,0.041,3754.9,3754.8,4.24886632]
[1753876639928,0.041,3754.9,3754.8,4.70666632]
[1753876640137,0.041,3754.9,3754.8,9.59526513]
[1753876640324,0.041,3754.9,3754.8,10.41666513]
[1753876640641,0.041,3754.9,3754.8,13.41666513]
[1753876640801,0.001,3755.1,3755.0,6.44811584]
[1753876641000,1.2591,3756.8,3755.4,3.44783218]
[1753876641233,0.05,3756.1,3755.4,15.74323099]
[1753876641439,0.05,3756.1,3755.4,16.68523099]
[1753876643015,0.786,3756.8,3755.8,2.66254859]
[1753876643016,0.05,3756.3,3755.8,2.66254859]
[1753876643218,0.05,3756.5,3755.8,11.42666694]
[1753876643435,0.05,3756.4,3755.8,12.36866694]
[1753876643676,0.041,3756.9,3755.8,7.63686694]
[1753876643677,0.05,3756.7,3755.8,7.63686694]
[1753876643816,0.05,3756.4,3755.8,11.91086694]
[1753876644478,0.05,3756.4,3755.8,12.36866694]
[1753876645656,0.05,3756.4,3755.8,11.91086694]
[1753876646644,0.4731,3756.7,3755.8,11.91086694]
[1753876646959,0.05,3756.5,3755.8,12.36866694]
[1753876647161,1e-08,3755.9,3755.8,12.36866694]
[1753876647683,0.041,3756.9,3756.7,3.48921071]
[1753876647998,0.041,3756.9,3756.8,7.06663986]
[1753876648204,0.041,3756.9,3756.8,7.55083986]
[1753876650169,0.041,3756.9,3756.8,2.79463986]
[1753876650347,0.5141,3756.9,3756.8,4.4048]
[1753876650543,0.5641,3756.9,3756.8,4.4048]
[1753876650750,0.5641,3756.9,3756.8,7.06663986]
[1753876651483,0.041,3756.9,3756.8,8.54153623]
[1753876652249,0.041,3756.9,3756.8,9.29253623]
[1753876652987,0.041,3756.9,3756.8,8.83513623]
[1753876653298,0.486,3756.9,3756.8,7.06563986]
[1753876653462,0.041,3756.9,3756.8,7.52203986]
[1753876654295,0.041,3756.9,3756.8,3.25103986]
[1753876654452,0.041,3756.9,3756.8,7.52103986]
[1753876654888,0.041,3756.9,3756.8,8.72513986]
[1753876655087,0.041,3756.9,3756.8,12.89960273]
[1753876655289,0.041,3756.9,3756.8,8.62960273]
[1753876655601,0.041,3756.9,3756.8,12.89960273]
[1753876657068,0.041,3756.9,3756.8,13.35270273]
[1753876657264,0.001,3757.3,3757.2,2.66155647]
[1753876657600,0.001,3757.3,3757.2,7.46387605]
[1753876657805,0.001,3757.3,3757.2,8.05307605]
[1753876660094,0.001,3757.4,3757.3,2.66148564]
[1753876660310,0.041,3757.9,3757.7,3.42480233]
[1753876660614,0.041,3757.9,3757.7,7.82660233]
[1753876660828,0.041,3757.9,3757.7,9.72134249]
[1753876660972,0.041,3757.9,3757.7,10.17774249]
[1753876661666,0.041,3757.9,3757.7,13.63084249]
[1753876662201,0.041,3757.9,3757.8,5.66113151]
[1753876662402,0.041,3757.9,3757.8,8.50171736]
[1753876662630,0.041,3757.9,3757.8,12.77071736]
[1753876666032,0.041,3757.9,3757.8,13.10731736]
[1753876666248,0.041,3757.9,3757.8,13.56371736]
[1753876667235,0.041,3757.9,3757.8,8.04531736]
[1753876667434,0.486,3757.9,3757.8,9.92813151]
[1753876667733,0.041,3757.9,3757.8,10.38453151]
[1753876669435,0.041,3757.9,3757.8,6.11753151]
[1753876669849,0.445,3758.4,3758.3,2.66077747]
[1753876670138,0.446,3758.8,3758.6,2.6605651]
[1753876670325,0.446,3758.8,3758.7,2.79329431]
[1753876670501,0.445,3758.8,3758.7,2.79329431]
[1753876670699,0.445,3758.8,3758.7,7.05929431]
[1753876671323,0.00100001,3758.9,3758.8,2.66042353]
[1753876671524,0.00100001,3758.9,3758.8,4.04012044]
[1753876671838,0.00100001,3758.9,3758.8,4.47652182]
[1753876673973,0.44600001,3758.9,3758.8,4.02012182]
[1753876674143,0.44600001,3758.9,3758.8,6.92542353]
[1753876675352,0.44600001,3758.9,3758.8,2.66042353]
[1753876675548,0.44600001,3758.9,3758.8,6.92542353]
[1753876675846,0.44600001,3758.9,3758.8,2.66042353]
[1753876676052,0.44600001,3758.9,3758.8,6.92542353]
[1753876676249,1.25540001,3758.9,3758.8,6.92542353]
[1753876676423,1.25540001,3758.9,3758.7,0.1328]
[1753876676618,0.81140001,3758.9,3758.8,4.265]
[1753876676817,0.81040001,3758.9,3758.8,4.265]
[1753876677047,0.81040001,3758.9,3758.8,6.92542353]
[1753876677329,1.25540001,3758.9,3758.8,6.92542353]
[1753876678928,0.44600001,3758.9,3758.8,6.92542353]
[1753876679130,0.00100001,3758.9,3758.8,8.35370189]
[1753876681437,0.00100001,3758.9,3758.8,8.81640189]
[1753876682040,0.00100001,3758.9,3758.8,8.35370189]
[1753876682619,0.00100001,3758.9,3758.8,4.08870189]
[1753876682941,0.00100001,3758.9,3758.8,8.35170189]
[1753876684935,0.00100001,3758.9,3758.8,8.34660189]
[1753876686360,0.00100001,3758.9,3758.8,7.89530189]
[1753876686524,0.00100001,3758.9,3758.8,8.34660189]
[1753876688488,0.00100001,3758.9,3758.8,11.34660189]
[1753876689753,1e-08,3759.3,3759.2,2.66014045]
[1753876689981,1e-08,3759.3,3759.2,16.26987544]
[1753876690195,1e-08,3759.3,3759.2,16.72117544]
[1753876690398,1e-08,3759.3,3759.2,17.18387544]
[1753876691674,0.041,3759.9,3759.8,2.65971594]
[1753876691675,1e-08,3759.9,3759.8,2.65971594]
[1753876691878,0.001,3760.3,3760.2,2.659433]
[1753876691879,1e-08,3760.3,3760.2,2.659433]
[1753876692076,1e-08,3760.3,3760.2,10.07320686]
[1753876692261,1e-08,3760.3,3760.2,13.4451698]
[1753876692467,1e-08,3760.3,3760.2,12.8951698]
[1753876693204,1e-08,3760.3,3760.2,12.1351698]
[1753876693389,1e-08,3760.3,3760.2,7.4228698]
[1753876693589,0.44770001,3760.3,3760.2,11.6828698]
[1753876693816,0.44770001,3760.3,3760.2,12.1341698]
[1753876694002,1e-08,3760.3,3760.2,12.1341698]
[1753876697525,1e-08,3760.3,3760.2,11.6828698]
[1753876697731,1e-08,3760.3,3760.2,12.1341698]
[1753876698114,1e-08,3760.3,3760.2,13.4582698]
[1753876698628,1e-08,3760.3,3760.2,13.9209698]
[1753876699333,0.4477,3761.7,3761.6,2.65844321]
[1753876699493,0.04,3761.9,3761.7,2.65837096]
[1753876699691,0.041,3761.9,3761.8,4.258]
[1753876700025,0.04,3761.9,3761.8,7.04910187]
[1753876700192,0.04,3761.9,3761.8,4.3908]
[1753876700734,0.4877,3761.9,3761.8,7.04910187]
[1753876700934,0.4877,3761.9,3761.8,7.3502091]
[1753876702418,0.4877,3761.9,3761.8,7.04910187]
[1753876704554,0.04,3761.9,3761.8,7.04910187]
[1753876704719,0.04,3761.9,3761.8,10.50040187]
[1753876705454,1e-08,3761.9,3761.8,11.51310187]
[1753876706271,1e-08,3761.9,3761.8,11.05040187]
[1753876706481,1e-08,3761.9,3761.8,13.00759606]
[1753876706968,1e-08,3761.9,3761.8,13.77719606]
[1753876707131,1e-08,3761.9,3761.8,18.66579487]
[1753876707540,1e-08,3761.9,3761.8,12.76149606]
[1753876709673,1e-08,3761.9,3761.8,13.77419606]
[1753876710591,1e-08,3761.9,3761.8,13.31149606]
[1753876711194,1e-08,3761.9,3761.8,13.75189606]
[1753876712570,1e-08,3761.9,3761.8,18.64049487]
[1753876714226,1e-08,3761.9,3761.8,13.75189606]
[1753876714575,1e-08,3761.9,3761.8,9.05649606]
[1753876714777,1e-08,3761.9,3761.8,13.30849606]
[1753876715129,1e-08,3761.9,3761.8,9.05649606]
[1753876715411,1e-08,3761.9,3761.8,13.30749606]
[1753876715972,1e-08,3761.9,3761.8,9.05649606]
[1753876716179,1e-08,3761.9,3761.8,13.30749606]
[1753876716668,1e-08,3761.9,3761.8,9.09879606]
[1753876716869,1e-08,3761.9,3761.8,13.34979606]
[1753876717695,1e-08,3761.9,3761.8,9.09879606]
[1753876717915,1e-08,3761.9,3761.8,13.34979606]
[1753876718297,1e-08,3761.9,3761.8,9.09879606]
[1753876718537,1e-08,3761.9,3761.8,13.34879606]
[1753876718738,1e-08,3761.9,3761.8,13.78919606]
[1753876719097,1e-08,3761.9,3761.8,13.34879606]
[1753876719298,1e-08,3762.6,3762.5,2.6578073]
[1753876719494,1e-08,3762.6,3762.5,11.10438803]
[1753876719713,1e-08,3762.6,3762.5,11.59798803]
[1753876720143,1e-08,3762.6,3762.5,12.14798803]
[1753876720437,1e-08,3762.6,3762.5,7.89798803]
[1753876720741,1e-08,3762.6,3762.5,12.14798803]
[1753876725279,1e-08,3763.0,3762.9,2.65752478]
[1753876725570,1e-08,3763.0,3762.9,10.73704492]
[1753876725752,0.46450001,3763.0,3762.9,10.73704492]
[1753876725925,0.46450001,3763.0,3762.9,10.03832478]
[1753876726128,0.46550001,3763.0,3762.9,5.79032478]
[1753876726441,1.29070001,3763.0,3762.9,0.1328]
[1753876726638,1.29070001,3763.0,3762.9,4.3798]
[1753876727667,1.28970001,3763.0,3762.9,4.3798]
[1753876727965,0.755,3762.9,3762.7,4.247]
[1753876728156,1.2205,3762.8,3762.7,4.247]
[1753876728728,1.2205,3762.8,3762.5,2.79059921]
[1753876728926,0.4655,3762.7,3762.6,4.247]
[1753876729157,0.4655,3762.7,3762.6,6.90473667]
[1753876729754,0.4655,3762.7,3762.6,4.247]
[1753876730139,0.4645,3762.7,3762.6,6.90473667]
[1753876730442,0.755,3762.8,3762.7,2.65766603]
[1753876730866,0.755,3762.8,3762.7,2.79046603]
[1753876731065,1.2195,3762.8,3762.7,2.79046603]
[1753876732059,1.2205,3762.8,3762.7,2.79046603]
[1753876732262,1.2205,3762.8,3762.7,4.3788]
[1753876732954,1.2205,3762.8,3762.7,4.246]
[1753876734037,0.7544,3762.7,3762.2,2.65799208]
[1753876734232,0.7544,3762.7,3762.4,0.1328]
[1753876734472,0.4655,3762.6,3762.5,4.245]
[1753876735366,0.4645,3762.6,3762.5,4.245]
[1753876735574,0.4645,3762.6,3762.5,6.9028073]
[1753876736334,0.4645,3762.6,3762.5,4.245]
[1753876736576,0.4645,3762.6,3762.5,6.9028073]
[1753876737990,0.7544,3762.7,3762.6,2.65773667]
[1753876738867,0.7544,3762.7,3762.6,3.28413667]
[1753876739209,1.2189,3762.7,3762.6,2.79053667]
[1753876739692,1.2189,3762.7,3762.6,7.03453667]
[1753876739873,1.2199,3762.7,3761.8,0.002]
[1753876740077,0.4645,3762.6,3762.5,2.65780254]
[1753876740315,0.4645,3762.6,3762.2,0.1328]
[1753876740468,0.4645,3762.6,3762.4,2.65786911]
[1753876740807,0.4655,3762.6,3762.5,4.244]
[1753876741015,0.7544,3762.7,3762.6,2.65773667]